fUSD/lending_fUSD_20240328
["ID","MTS","AMOUNT","RATE_DAILY","PERIOD"]
[320826137,1711584646523,-741.3,0.00054507,120]
[320826138,1711584646533,-500.0,0.00054507,120]
[320826139,1711584646544,-504.42,0.00054507,120]
[320826140,1711584646554,-5731.16,0.00054507,120]
[320826141,1711584646564,-500.0,0.00054507,120]
[320826142,1711584646574,-2211.3,0.00054507,120]
[320826143,1711584646583,-593.27,0.00054507,120]
[320826144,1711584646593,-1277.83,0.00054507,120]
[320826145,1711584646603,-500.0,0.00054507,120]
[320826146,1711584646612,-662.88,0.00054507,120]
[320826147,1711584646623,-500.0,0.00054507,120]
[320826148,1711584646632,-1634.75,0.00054507,120]
[320826149,1711584646644,-754.07,0.00054507,120]
[320826150,1711584646653,-500.0,0.00054507,120]
[320826151,1711584646663,-500.0,0.00054507,120]
[320826152,1711584646672,-552.17,0.00054507,120]
[320826153,1711584646682,-827.59,0.00054507,120]
[320826154,1711584646692,-1398.04,0.00054507,21]
[320826155,1711584646701,-500.0,0.00054507,120]
[320826156,1711584646711,-1461.55,0.00054507,120]
[320826157,1711584646721,-513.04,0.00054507,120]
[320826158,1711584646730,-500.0,0.00054507,7]
[320826159,1711584646738,-844.9,0.00054507,120]
[320826160,1711584646747,-500.0,0.00054507,120]
[320826161,1711584646756,-574.0,0.00054507,120]
[320826162,1711584646765,-2352.91,0.00054507,120]
[320826163,1711584646774,-500.0,0.00054507,120]
[320826164,1711584646783,-630.0,0.00054507,120]
[320826165,1711584646793,-1248.14,0.00054507,120]
[320826166,1711584646802,-1635.87,0.00054507,120]
[320826167,1711584646811,-500.0,0.00054507,120]
[320826168,1711584646820,-500.0,0.00054507,120]
[320826169,1711584646829,-500.0,0.00054507,2]
[320826170,1711584646838,-1417.82,0.00054507,120]
[320826171,1711584646847,-500.0,0.00054507,120]
[320826172,1711584646856,-500.0,0.00054507,120]
[320826173,1711584646865,-500.0,0.00054507,120]
[320826174,1711584646874,-192.79464801,0.00054507,120]
[320826175,1711584646883,-613.77,0.00054507,120]
[320826176,1711584646893,-515.4,0.00054507,120]
[320826177,1711584646902,-500.0,0.00054507,120]
[320826178,1711584646912,-1040.74,0.00054507,120]
[320826179,1711584646921,-308.03647862,0.00054507,120]
[320826180,1711584646930,-1518.11,0.00054507,120]
[320826181,1711584646939,-587.04,0.00054507,120]
[320826182,1711584646948,-500.0,0.00054507,120]
[320826183,1711584646957,-831.91,0.00054507,120]
[320826184,1711584646968,-2343.4,0.00054507,120]
[320826185,1711584646977,-684.22,0.00054507,120]
[320826186,1711584646987,-177.36723154,0.00054507,120]
[320826187,1711584646996,-514.1,0.00054507,120]
[320826188,1711584647005,-659.87,0.00054507,120]
[320826189,1711584647015,-500.0,0.00054507,120]
[320826190,1711584647025,-500.0,0.00054507,120]
[320826191,1711584647034,-1823.23,0.00054507,120]
[320826192,1711584647043,-702.89,0.00054507,120]
[320826193,1711584647052,-500.0,0.00054507,120]
[320826194,1711584647061,-500.0,0.00054507,120]
[320826195,1711584647070,-2607.92,0.00054507,120]
[320826196,1711584647080,-500.0,0.00054507,120]
[320826197,1711584647090,-1571.17,0.00054507,120]
[320826198,1711584647099,-1125.79,0.00054507,120]
[320826199,1711584647108,-500.0,0.00054507,120]
[320826200,1711584647117,-1238.48,0.00054507,120]
[320826201,1711584647126,-1383.73,0.00054507,120]
[320826202,1711584647135,-500.0,0.00054507,120]
[320826203,1711584647146,-696.96,0.00054507,120]
[320826204,1711584647155,-500.0,0.00054507,120]
[320826205,1711584647164,-737.39,0.00054507,120]
[320826206,1711584647173,-500.0,0.00054507,120]
[320826207,1711584647182,-1017.88,0.00054507,120]
[320826208,1711584647192,-2214.64,0.00054507,120]
[320826209,1711584647201,-2161.52,0.00054507,120]
[320826210,1711584647210,-500.0,0.00054507,120]
[320826211,1711584647218,-641.06,0.00054507,120]
[320826212,1711584647227,-1084.24,0.00054507,120]
[320826213,1711584647236,-500.0,0.00054507,120]
[320826214,1711584647245,-500.0,0.00054507,120]
[320826215,1711584647254,-2042.49,0.00054507,120]
[320826216,1711584647263,-1222.5,0.00054507,120]
[320826217,1711584647272,-1840.66,0.00054507,120]
[320826218,1711584647281,-913.33,0.00054507,120]
[320826219,1711584647290,-500.0,0.00054507,120]
[320826220,1711584647299,-1251.91,0.00054507,120]
[320826221,1711584647308,-751.27,0.00054507,120]
[320826222,1711584647317,-500.0,0.00054507,120]
[320826223,1711584647326,-500.0,0.00054507,120]
[320826224,1711584647335,-500.0,0.00054507,120]
[320826225,1711584647346,-649.67493149,0.00054507,120]
[320826226,1711584647355,-500.0,0.00054507,120]
[320826227,1711584647365,-500.0,0.00054507,120]
[320826228,1711584647374,-8126.32,0.00054507,120]
[320826229,1711584647384,-1478.99,0.00054507,120]
[320826230,1711584647395,-1621.75,0.00054507,120]
[320826231,1711584647405,-1165.65,0.00054507,120]
[320826232,1711584647415,-500.0,0.00054507,120]
[320826233,1711584647425,-1700.93,0.00054507,120]
[320826234,1711584647436,-500.0,0.00054507,120]
[320826235,1711584647445,-659.17,0.00054507,120]
[320826236,1711584647457,-1618.51,0.00054507,120]
[320826237,1711584647466,-500.0,0.00054507,120]
[320826238,1711584647475,-500.0,0.00054507,120]
[320826239,1711584647484,-1356.17,0.00054507,120]
[320826240,1711584647493,-521.18,0.00054507,120]
[320826241,1711584647502,-1543.85,0.00054507,120]
[320826242,1711584647511,-1208.93,0.00054507,120]
[320826243,1711584647520,-500.0,0.00054507,120]
[320826244,1711584647528,-500.0,0.00054507,120]
[320826245,1711584647538,-1687.94,0.00054507,120]
[320826246,1711584647550,-643.9,0.00054507,120]
[320826247,1711584647558,-1653.04,0.00054507,120]
[320826248,1711584647567,-516.50263157,0.00054507,120]
[320826249,1711584647576,-2453.93,0.00054507,120]
[320826250,1711584647586,-1091.68,0.00054507,120]
[320826251,1711584647596,-500.0,0.00054507,120]
[320826252,1711584647605,-597.45,0.00054507,120]
[320826253,1711584647615,-500.0,0.00054507,120]
[320826254,1711584647625,-629.87,0.00054507,120]
[320826255,1711584647635,-500.0,0.00054508,120]
[320826256,1711584647644,-500.0,0.00054508,120]
[320826257,1711584647654,-623.01,0.00054508,120]
[320826258,1711584647664,-500.0,0.00054508,120]
[320826259,1711584647673,-500.0,0.00054508,120]
[320826260,1711584647682,-500.0,0.00054508,120]
[320826261,1711584647692,-500.0,0.00054508,120]
[320826262,1711584647701,-500.0,0.00054508,120]
[320826263,1711584647711,-500.0,0.00054508,120]
[320826264,1711584647720,-500.0,0.00054508,120]
[320826265,1711584647729,-500.0,0.00054508,120]
[320826266,1711584647739,-500.0,0.00054508,120]
[320826267,1711584647748,-252.0,0.00054508,120]
[320826268,1711584647757,-300.0,0.00054508,2]
[320826269,1711584647767,-500.0,0.00054508,120]
[320826270,1711584647776,-500.0,0.00054508,120]
[320826271,1711584647785,-500.0,0.00054508,120]
[320826272,1711584647794,-500.0,0.00054508,120]
[320826273,1711584647803,-500.0,0.00054508,120]
[320826274,1711584647813,-500.0,0.00054508,120]
[320826275,1711584647823,-500.0,0.00054508,120]
[320826276,1711584647832,-500.0,0.00054508,120]
[320826277,1711584647841,-500.0,0.00054508,120]
[320826278,1711584647851,-603.02310527,0.00054508,120]
[320826279,1711584647861,-540.27524384,0.00054508,120]
[320826280,1711584647871,-500.0,0.00054508,120]
[320826281,1711584647880,-500.0,0.00054508,120]
[320826282,1711584647890,-500.0,0.00054508,120]
[320826283,1711584647899,-500.0,0.00054508,120]
[320826284,1711584647908,-358.93893686,0.00054508,120]
[320826285,1711584647917,-506.07727027,0.00054508,120]
[320826286,1711584647926,-886.12,0.00054508,120]
[320826287,1711584647936,-500.0,0.00054508,120]
[320826288,1711584648059,-500.0,0.00054508,120]
[320826289,1711584648069,-500.0,0.00054508,120]
[320826290,1711584648078,-500.0,0.00054508,120]
[320826291,1711584648087,-500.0,0.00054508,120]
[320826292,1711584648097,-500.0,0.00054508,120]
[320826293,1711584648107,-500.0,0.00054508,120]
[320826294,1711584648117,-1044.9,0.00054508,120]
[320826295,1711584648126,-436.44317585,0.00054508,120]
[320826296,1711584648134,-500.0,0.00054508,120]
[320826297,1711584648145,-500.0,0.00054508,120]
[320826298,1711584648154,-500.0,0.00054508,120]
[320826299,1711584648162,-500.0,0.00054508,120]
[320826300,1711584648171,-506.15246699,0.00054508,120]
[320826301,1711584648181,-500.0,0.00054508,120]
[320826302,1711584648190,-500.0,0.00054508,120]
[320826303,1711584648198,-500.0,0.00054508,120]
[320826304,1711584648207,-506.90617353,0.00054508,120]
[320826305,1711584648216,-500.0,0.00054508,120]
[320826306,1711584648226,-500.0,0.00054508,120]
[320826307,1711584648235,-208.58391087,0.00054508,120]
[320826308,1711584648244,-506.54099108,0.00054508,120]
[320826309,1711584648253,-500.0,0.00054508,120]
[320826310,1711584648262,-508.45462986,0.00054508,120]
[320826311,1711584648271,-500.0,0.00054508,120]
[320826312,1711584648280,-500.0,0.00054508,120]
[320826313,1711584648289,-503.49445238,0.00054508,120]
[320826314,1711584648298,-500.0,0.00054508,120]
[320826315,1711584648307,-500.0,0.00054508,120]
[320826316,1711584648316,-500.0,0.00054508,120]
[320826317,1711584648326,-500.0,0.00054508,120]
[320826318,1711584648335,-500.0,0.00054508,120]
[320826319,1711584648344,-500.0,0.00054508,120]
[320826320,1711584648353,-500.0,0.00054508,120]
[320826321,1711584648362,-500.0,0.00054508,120]
[320826322,1711584648372,-554.22119073,0.00054508,120]
[320826323,1711584648381,-503.72995215,0.00054508,120]
[320826324,1711584648390,-500.0,0.00054508,120]
[320826325,1711584648399,-500.0,0.00054508,120]
[320826326,1711584648408,-500.0,0.00054508,120]
[320826327,1711584648417,-500.0,0.00054508,120]
[320826328,1711584648426,-500.0,0.00054508,120]
[320826329,1711584648435,-500.0,0.00054508,120]
[320826330,1711584648444,-573.5290868,0.00054508,120]
[320826331,1711584648453,-500.0,0.00054508,120]
[320826332,1711584648462,-500.0,0.00054508,120]
[320826333,1711584648471,-500.0,0.00054508,120]
[320826334,1711584648480,-500.0,0.00054508,120]
[320826335,1711584648490,-500.0,0.00054508,120]
[320826336,1711584648499,-500.0,0.00054508,120]
[320826337,1711584648508,-500.0,0.00054508,120]
[320826338,1711584648517,-500.0,0.00054508,120]
[320826339,1711584648527,-500.0,0.00054508,120]
[320826340,1711584648537,-500.0,0.00054508,120]
[320826341,1711584648549,-500.0,0.00054508,120]
[320826342,1711584648558,-500.0,0.00054508,120]
[320826343,1711584648567,-500.0,0.00054508,120]
[320826344,1711584648577,-500.0,0.00054508,120]
[320826345,1711584648586,-500.0,0.00054508,120]
[320826346,1711584648597,-500.0,0.00054508,120]
[320826347,1711584648606,-500.0,0.00054508,120]
[320826348,1711584648615,-500.0,0.00054508,120]
[320826349,1711584648626,-500.0,0.00054508,120]
[320826350,1711584648635,-454.74495354,0.00054508,120]
[320826351,1711584648645,-500.0,0.00054508,120]
[320826352,1711584648654,-500.0,0.00054508,120]
[320826353,1711584648663,-500.0,0.00054508,120]
[320826354,1711584648672,-500.0,0.00054508,120]
[320826355,1711584648683,-500.0,0.00054508,120]
[320826356,1711584648694,-500.0,0.00054508,120]
[320826357,1711584648704,-500.0,0.00054508,120]
[320826358,1711584648716,-500.0,0.00054508,120]
[320826359,1711584648727,-500.0,0.00054508,120]
[320826360,1711584648736,-500.0,0.00054508,120]
[320826361,1711584648747,-500.0,0.00054508,120]
[320826362,1711584648758,-647.98,0.00054508,120]
[320826363,1711584648767,-500.0,0.00054508,120]
[320826364,1711584648776,-500.0,0.00054508,120]
[320826365,1711584648785,-500.0,0.00054508,120]
[320826366,1711584648794,-500.0,0.00054508,120]
[320826367,1711584648803,-436.88,0.00054508,120]
[320826368,1711584648813,-500.0,0.00054508,120]
[320826369,1711584648822,-500.0,0.00054508,120]
[320826370,1711584648831,-500.0,0.00054508,120]
[320826371,1711584648841,-500.0,0.00054508,120]
[320826372,1711584648851,-516.17396327,0.00054508,120]
[320826373,1711584648860,-500.0,0.00054508,120]
[320826374,1711584648870,-773.53,0.00054508,2]
[320826375,1711584648879,-500.0,0.00054508,120]
[320826376,1711584648889,-500.0,0.00054508,120]
[320826377,1711584648897,-500.0,0.00054508,120]
[320826378,1711584648906,-500.0,0.00054508,120]
[320826379,1711584648915,-500.0,0.00054508,120]
[320826380,1711584648925,-500.0,0.00054508,120]
[320826381,1711584648935,-500.0,0.00054508,120]
[320826382,1711584648944,-232.6645678,0.00054508,120]
[320826383,1711584648953,-175.67753393,0.00054508,120]
[320826384,1711584648963,-9907.8550927,0.0005451,2]
[320826385,1711584648973,-500.0,0.00054517,60]
[320826386,1711584648982,-500.0,0.00054517,2]
[320826387,1711584648991,-474.32286166,0.00054518,120]
[320826388,1711584649001,-500.0,0.00054518,2]
[320826389,1711584649011,-250.6240763,0.00054518,2]
[320826390,1711584649022,-168.16699802,0.00054518,120]
[320826391,1711584649031,-500.0,0.00054518,120]
[320826392,1711584649040,-500.0,0.00054518,120]
[320826393,1711584649050,-705.19,0.00054518,120]
[320826394,1711584649059,-500.0,0.00054518,120]
[320826395,1711584649069,-187.74128744,0.00054518,120]
[320826396,1711584649079,-500.0,0.00054518,120]
[320826397,1711584649089,-500.0,0.00054518,120]
[320826398,1711584649100,-500.0,0.00054518,120]
[320826399,1711584649111,-500.0,0.00054518,120]
[320826400,1711584649120,-500.0,0.00054518,120]
[320826401,1711584649130,-500.0,0.00054518,120]
[320826402,1711584649140,-900.48,0.00054518,120]
[320826403,1711584649150,-591.2,0.00054518,120]
[320826404,1711584649160,-500.0,0.00054518,120]
[320826405,1711584649169,-500.0,0.00054518,120]
[320826406,1711584649179,-511.95,0.00054518,120]
[320826407,1711584649188,-531.22,0.00054518,120]
[320826408,1711584649197,-557.22,0.00054518,120]
[320826409,1711584649207,-500.0,0.00054518,120]
[320826410,1711584649216,-500.0,0.00054518,120]
[320826411,1711584649225,-500.0,0.00054518,120]
[320826412,1711584649234,-500.0,0.00054518,120]
[320826413,1711584649243,-500.0,0.00054518,120]
[320826414,1711584649253,-2326.83674769,0.00054519,30]
[320826415,1711584649262,-15000.0,0.0005452,120]
[320826416,1711584649271,-196.69764862,0.00054544,2]
[320826417,1711584649281,-130041.0319165,0.00054547,2]
[320826418,1711584649290,-4879.7650175,0.00054547,2]
[320826419,1711584649299,-1334.81026715,0.00054584,31]
[320826420,1711584649309,-150.0,0.000546,33]
[320826421,1711584649319,-268.379999,0.000546,120]
[320826422,1711584649328,-152.49542727,0.00054619,60]
[320826423,1711584649337,-341.0,0.00054661,15]
[320826424,1711584649346,-229.0,0.00054661,15]
[320826425,1711584649357,-341.0,0.00054671,15]
[320826426,1711584649367,-229.0,0.00054671,15]
[320826427,1711584649377,-341.0,0.00054681,15]
[320826428,1711584649386,-229.0,0.00054681,15]
[320826429,1711584649396,-151.01057888,0.00054681,62]
[320826430,1711584649406,-156.59463478,0.00054681,2]
[320826431,1711584649415,-161.46136336,0.00054681,2]
[320826432,1711584649425,-5175.86352885,0.00054689,4]
[320826433,1711584649435,-836.3742157,0.00054691,2]
[320826434,1711584649444,-150.0,0.000547,12]
[320826435,1711584649453,-156.08974316,0.00054717,60]
[320826436,1711584649462,-157.032807,0.00054748,116]
[320826437,1711584649472,-161.997484,0.00054763,30]
[320826438,1711584649481,-231.363913,0.00054763,30]
[320826439,1711584649489,-1956.727117,0.00054763,30]
[320826440,1711584649500,-231.363914,0.00054763,30]
[320826441,1711584649510,-1956.727117,0.00054763,30]
[320826442,1711584649519,-231.363914,0.00054763,30]
[320826443,1711584649530,-1381.219142,0.00054763,30]
[320826444,1711584649541,-157.24461172,0.00054766,60]
[320826445,1711584649553,-13582.52604194,0.0005477,120]
[320826446,1711584649563,-500.0,0.0005478,2]
[320826447,1711584649573,-1157.64,0.0005478,120]
[320826448,1711584649583,-1789.64,0.0005478,120]
[320826449,1711584649594,-1026.88,0.0005478,120]
[320826450,1711584649605,-500.0,0.0005478,120]
[320826451,1711584649615,-1559.47,0.0005478,120]
[320826452,1711584649626,-2955.78,0.0005478,120]
[320826453,1711584649636,-2124.8,0.0005478,120]
[320826454,1711584649647,-1446.1,0.0005478,120]
[320826455,1711584649658,-807.61,0.0005478,120]
[320826456,1711584649667,-1275.47,0.0005478,120]
[320826457,1711584649678,-1496.23,0.0005478,120]
[320826458,1711584649687,-2045.89,0.0005478,120]
[320826459,1711584649697,-2372.93,0.0005478,120]
[320826460,1711584649707,-808.12,0.0005478,120]
[320826461,1711584649717,-810.97,0.0005478,120]
[320826462,1711584649734,-853.55,0.0005478,120]
[320826463,1711584649743,-850.38,0.0005478,120]
[320826464,1711584649752,-500.0,0.0005478,120]
[320826465,1711584649761,-1629.05,0.0005478,120]
[320826466,1711584649770,-1012.45,0.0005478,120]
[320826467,1711584649779,-1193.35,0.0005478,120]
[320826468,1711584649789,-1111.48,0.0005478,120]
[320826469,1711584649798,-1389.93,0.0005478,120]
[320826470,1711584649806,-2062.02,0.0005478,120]
[320826471,1711584649815,-802.14,0.0005478,120]
[320826472,1711584649825,-495.79907034,0.0005478,2]
[320826473,1711584649834,-2710.34,0.0005478,120]
[320826474,1711584649843,-599.16,0.0005478,120]
[320826475,1711584649852,-500.0,0.0005478,120]
[320826476,1711584649861,-929.36,0.0005478,120]
[320826477,1711584649870,-1003.78,0.0005478,120]
[320826478,1711584649879,-500.0,0.0005478,120]
[320826479,1711584649888,-599.23,0.0005478,120]
[320826480,1711584649897,-500.0,0.0005478,120]
[320826481,1711584649906,-500.0,0.0005478,120]
[320826482,1711584649915,-990.65,0.0005478,120]
[320826483,1711584649924,-500.0,0.00054781,120]
[320826484,1711584649933,-500.0,0.00054781,120]
[320826485,1711584649943,-500.0,0.00054781,120]
[320826486,1711584649953,-557.72,0.00054781,120]
[320826487,1711584649962,-500.0,0.00054781,120]
[320826488,1711584649972,-500.0,0.00054781,120]
[320826489,1711584649981,-1277.73,0.00054781,120]
[320826490,1711584649990,-500.0,0.00054781,120]
[320826491,1711584649999,-500.0,0.00054781,60]
[320826492,1711584650009,-500.0,0.00054781,120]
[320826493,1711584650018,-500.0,0.00054781,120]
[320826494,1711584650027,-654.07,0.00054781,120]
[320826495,1711584650036,-563.1,0.00054781,120]
[320826496,1711584650046,-1201.12,0.00054781,120]
[320826497,1711584650056,-912.88,0.00054781,120]
[320826498,1711584650065,-616.28,0.00054781,120]
[320826499,1711584650074,-500.0,0.00054781,120]
[320826500,1711584650200,-500.0,0.00054781,120]
[320826501,1711584650210,-500.0,0.00054781,120]
[320826502,1711584650220,-500.0,0.00054781,120]
[320826503,1711584650230,-500.0,0.00054781,120]
[320826504,1711584650240,-500.0,0.00054781,120]
[320826505,1711584650250,-238.51,0.00054781,120]
[320826506,1711584650260,-1408.43,0.00054781,120]
[320826507,1711584650270,-500.0,0.00054781,120]
[320826508,1711584650280,-500.0,0.00054781,120]
[320826509,1711584650290,-500.0,0.00054781,120]
[320826510,1711584650300,-500.0,0.00054781,120]
[320826511,1711584650309,-500.0,0.00054781,120]
[320826512,1711584650319,-500.0,0.00054781,120]
[320826513,1711584650330,-500.0,0.00054781,120]
[320826514,1711584650340,-500.0,0.00054781,120]
[320826515,1711584650350,-500.0,0.00054781,120]
[320826516,1711584650360,-500.0,0.00054781,120]
[320826517,1711584650370,-500.0,0.00054781,120]
[320826518,1711584650380,-631.44560999,0.00054781,120]
[320826519,1711584650391,-628.91,0.00054781,120]
[320826520,1711584650401,-762.5,0.00054781,120]
[320826521,1711584650411,-500.0,0.00054781,120]
[320826522,1711584650421,-500.0,0.00054781,120]
[320826523,1711584650431,-500.0,0.00054781,120]
[320826524,1711584650441,-500.0,0.00054781,120]
[320826525,1711584650451,-1159.37,0.00054781,120]
[320826526,1711584650461,-500.0,0.00054781,120]
[320826527,1711584650471,-500.0,0.00054781,120]
[320826528,1711584650481,-758.89,0.00054781,120]
[320826529,1711584650491,-1205.4,0.00054781,120]
[320826530,1711584650500,-176.87,0.00054781,120]
[320826531,1711584650510,-500.0,0.00054781,120]
[320826532,1711584650519,-500.0,0.00054781,120]
[320826533,1711584650530,-676.47,0.00054781,120]
[320826534,1711584650541,-500.0,0.00054781,120]
[320826535,1711584650553,-500.0,0.00054781,120]
[320826536,1711584650562,-566.23,0.00054781,120]
[320826537,1711584650571,-500.0,0.00054781,120]
[320826538,1711584650580,-508.51,0.00054781,120]
[320826539,1711584650590,-500.0,0.00054781,120]
[320826540,1711584650600,-500.0,0.00054781,120]
[320826541,1711584650610,-500.0,0.00054781,120]
[320826542,1711584650619,-500.0,0.00054781,120]
[320826543,1711584650629,-732.14,0.00054781,120]
[320826544,1711584650639,-500.0,0.00054781,120]
[320826545,1711584650649,-500.0,0.00054781,120]
[320826546,1711584650658,-151.0,0.00054781,120]
[320826547,1711584650667,-500.0,0.00054781,120]
[320826548,1711584650677,-1152.46,0.00054781,120]
[320826549,1711584650686,-500.0,0.00054781,120]
[320826550,1711584650696,-500.0,0.00054781,120]
[320826551,1711584650705,-546.52,0.00054781,120]
[320826552,1711584650714,-500.0,0.00054781,120]
[320826553,1711584650725,-500.0,0.00054781,120]
[320826554,1711584650734,-500.0,0.00054781,120]
[320826555,1711584650743,-1200.71,0.00054781,120]
[320826556,1711584650752,-674.07,0.00054781,120]
[320826557,1711584650762,-773.84,0.00054781,120]
[320826558,1711584650771,-500.0,0.00054781,120]
[320826559,1711584650780,-500.0,0.00054781,120]
[320826560,1711584650789,-566.74,0.00054781,120]
[320826561,1711584650798,-1463.73,0.00054781,120]
[320826562,1711584650807,-500.0,0.00054781,120]
[320826563,1711584650816,-500.0,0.00054781,120]
[320826564,1711584650825,-664.45,0.00054781,120]
[320826565,1711584650835,-557.68,0.00054781,30]
[320826566,1711584650844,-500.0,0.00054781,120]
[320826567,1711584650853,-500.0,0.00054781,120]
[320826568,1711584650862,-500.0,0.00054781,120]
[320826569,1711584650872,-500.0,0.00054781,2]
[320826570,1711584650881,-500.0,0.00054781,120]
[320826571,1711584650891,-649.32,0.00054781,120]
[320826572,1711584650900,-500.0,0.00054781,120]
[320826573,1711584650911,-447.45196683,0.00054781,120]
[320826574,1711584650920,-1089.73,0.00054781,120]
[320826575,1711584650929,-847.95,0.00054781,120]
[320826576,1711584650938,-500.0,0.00054781,120]
[320826577,1711584650947,-574.32019914,0.00054781,120]
[320826578,1711584650956,-500.0,0.00054781,120]
[320826579,1711584650965,-656.27,0.00054781,120]
[320826580,1711584650974,-526.43,0.00054781,120]
[320826581,1711584650983,-500.0,0.00054781,120]
[320826582,1711584650992,-500.0,0.00054781,120]
[320826583,1711584651002,-538.35,0.00054781,120]
[320826584,1711584651012,-1358.8,0.00054781,120]
[320826585,1711584651022,-500.0,0.00054781,120]
[320826586,1711584651031,-500.0,0.00054781,120]
[320826587,1711584651041,-2038.82,0.00054781,120]
[320826588,1711584651051,-926.43,0.00054781,120]
[320826589,1711584651060,-500.0,0.00054781,120]
[320826590,1711584651069,-500.0,0.00054781,120]
[320826591,1711584651078,-927.3,0.00054781,120]
[320826592,1711584651087,-500.0,0.00054781,120]
[320826593,1711584651096,-500.0,0.00054781,120]
[320826594,1711584651105,-481.46013652,0.00054781,120]
[320826595,1711584651115,-798.77,0.00054781,120]
[320826596,1711584651124,-500.0,0.00054781,120]
[320826597,1711584651134,-500.0,0.00054781,120]
[320826598,1711584651144,-500.0,0.00054781,120]
[320826599,1711584651153,-500.0,0.00054781,120]
[320826600,1711584651163,-500.0,0.00054781,120]
[320826601,1711584651172,-1188.21,0.00054781,120]
[320826602,1711584651182,-500.0,0.00054781,120]
[320826603,1711584651191,-500.0,0.00054781,120]
[320826604,1711584651200,-500.0,0.00054781,120]
[320826605,1711584651210,-500.0,0.00054781,120]
[320826606,1711584651218,-500.0,0.00054781,120]
[320826607,1711584651228,-500.0,0.00054781,120]
[320826608,1711584651237,-500.0,0.00054781,120]
[320826609,1711584651247,-500.0,0.00054781,120]
[320826610,1711584651255,-500.0,0.00054781,120]
[320826611,1711584651265,-313.66,0.00054781,120]
[320826612,1711584651274,-500.0,0.00054781,120]
[320826613,1711584651283,-500.0,0.00054781,120]
[320826614,1711584651293,-1423.71,0.00054781,120]
[320826615,1711584651302,-316.46588169,0.00054781,120]
[320826616,1711584651311,-326.43,0.00054781,120]
[320826617,1711584651320,-151.0,0.00054781,120]
[320826618,1711584651329,-500.0,0.00054781,120]
[320826619,1711584651339,-500.0,0.00054781,120]
[320826620,1711584651348,-701.93,0.00054781,120]
[320826621,1711584651357,-500.0,0.00054781,120]
[320826622,1711584651367,-500.0,0.00054781,120]
[320826623,1711584651376,-500.0,0.00054781,120]
[320826624,1711584651386,-913.74,0.00054781,120]
[320826625,1711584651397,-500.0,0.00054781,120]
[320826626,1711584651406,-534.94,0.00054781,120]
[320826627,1711584651416,-899.61,0.00054781,120]
[320826628,1711584651425,-582.39,0.00054781,120]
[320826629,1711584651434,-500.0,0.00054781,120]
[320826630,1711584651443,-537.89,0.00054781,120]
[320826631,1711584651452,-1585.29,0.00054781,120]
[320826632,1711584651461,-694.35,0.00054781,120]
[320826633,1711584651471,-500.0,0.00054781,120]
[320826634,1711584651480,-158.31,0.00054781,120]
[320826635,1711584651489,-985.45,0.00054781,120]
[320826636,1711584651498,-1124.17,0.00054781,120]